[Event "IIFL Wealth 4th Mumbai GM"]
[Site "Mumbai"]
[Date "2019.01.02"]
[Round "4"]
[White "Dhungel, Uttam"]
[Black "Bhasima, Prashan"]
[Result "1/2-1/2"]
[ECO "C02"]
[WhiteElo "1587"]
[BlackElo "1658"]
[Annotator "NA"]
[PlyCount "86"]
[EventDate "2018.12.30"]
[EventType "swiss"]
[EventCountry "IND"]
[SourceTitle "playchess.com"]
[Source "ChessBase"]
[SourceQuality "1"]
[TimeControl "40/5400+30:1800+30"]

1. e4 {[%emt 0:09:49]} e6 {[%emt 0:00:09]} 2. d4 {[%emt 0:00:13]} d5 {[%emt 0:00:21]} 3. e5 {[%emt 0:00:46]} c5 {[%emt 0:00:42]} 4. Nf3 {[%emt 0:00:28]} Nc6 {[%emt 0:00:42]} 5. c3 {[%emt 0:00:46]} c4 {[%emt 0:01:05]} 6. Be2 {[%emt 0:00:39]} Nge7 {[%emt 0:00:43]} 7. O-O {[%emt 0:00:40]} a5 {[%emt 0:01:15]} 8. Be3 {[%emt 0:06:16]} a4 {[%emt 0:03:30]} 9. a3 {[%emt 0:00:40]} Ng6 {[%emt 0:00:35]} 10. Nbd2 {[%emt 0:05:13]} Be7 {[%emt 0:02:31]} 11. Ne1 {[%emt 0:01:11]} Bg5 {[%emt 0:02:59]} 12. Bxg5 {[%emt 0:01:36]} Qxg5 {[%emt 0:00:10]} 13. g3 {[%emt 0:00:35]} b5 {[%emt 0:00:38]} 14. f4 {[%emt 0:00:33]} Qe7 {[%emt 0:01:34]} 15. Nc2 {[%emt 0:00:56]} Na5 {[%emt 0:02:47]} 16. Nb4 {[%emt 0:01:03]} Bd7 {[%emt 0:00:37]} 17. Qe1 {[%emt 0:03:52]} Qf8 {[%emt 0:01:51]} 18. Bd1 {[%emt 0:01:25]} Ne7 {[%emt 0:01:44]} 19. Bc2 {[%emt 0:00:56]} g6 {[%emt 0:01:06]} 20. h4 {[%emt 0:01:04]} Nec6 {[%emt 0:04:43]} 21. Nxc6 {[%emt 0:02:11]} Bxc6 {[%emt 0:00:31]} 22. Qf2 {[%emt 0:01:31]} f5 {[%emt 0:01:31]} 23. Kh2 {[%emt 0:02:40]} h5 {[%emt 0:00:23]} 24. Rae1 {[%emt 0:00:39]} O-O-O {[%emt 0:01:25]} 25. Bd1 {[%emt 0:01:21]} Kc7 {[%emt 0:00:25]} 26. Bf3 {[%emt 0:00:27]} Bd7 {[%emt 0:00:47]} 27. Re2 {[%emt 0:00:50]} Re8 {[%emt 0:00:53]} 28. Rfe1 {[%emt 0:00:39]} Qe7 {[%emt 0:01:27]} 29. Qg2 {[%emt 0:00:21]} Qf8 {[%emt 0:00:09]} 30. Kg1 {[%emt 0:00:30]} Qe7 {[%emt 0:00:10]} 31. Kh2 {[%emt 0:00:43]} Qf8 {[%emt 0:00:12]} 32. Qh1 {[%emt 0:00:24]} Bc6 {[%emt 0:00:21]} 33. Qg2 {[%emt 0:00:31]} Qe7 {[%emt 0:01:03]} 34. Kh1 {[%emt 0:00:34]} Rd8 {[%emt 0:00:10]} 35. Kh2 {[%emt 0:00:31]} Qf8 {[%emt 0:00:14]} 36. Re3 {[%emt 0:00:19]} Qe7 {[%emt 0:00:05]} 37. R1e2 {[%emt 0:00:19]} Kb6 {[%emt 0:00:59]} 38. Kg1 {[%emt 0:01:15]} Bb7 {[%emt 0:00:13]} 39. Kh2 {[%emt 0:01:15]} Bc6 {[%emt 0:00:12]} 40. Rf2 {[%emt 0:00:00]} Bb7 {[%emt 0:00:00]} 41. Ree2 {[%emt 0:01:08]} Bc6 {[%emt 0:00:16]} 42. Kh1 {[%emt 0:00:24]} Bb7 {[%emt 0:00:06]} 43. Kh2 {[%emt 0:00:11]} Bc6 {[%emt 0:00:05]} 1/2-1/2